{"text_format":"3","workbook":"xlsx","n_sheets":2,"sheets":["Flusso di cassa","Grafico Flusso di cassa"],"not_rendered":{"charts":1,"defined_names":4},"read":"whole","date_system":"1900"}

{"sheet":"Flusso di cassa","index":0,"n_rows":62,"n_cols":16,"rows_kept":62,"merged":[[0,1,0,15],[1,1,1,15]]}
[null,"ADATUM CORPORATION"]
[null,"Proiezione del flusso di cassa per piccole imprese"]
[]
[null,"Data di inizio",{"$f":"TODAY()","v":"2023-03-22"}]
[null,"Avviso minimo per il saldo di cassa",null,{"$f":"Cash_minimum","v":0},{"$f":"Cash_minimum","v":0},0,0,0,0,0,0,0,0,0,0]
[]
[null,null,"Inizio","Gen-xx","Feb-xx","Mar-xx","Apr-xx","Mag-xx","Giu-xx","Lug-xx","Ago-xx","Set-xx","Ott-xx","Nov-xx","Dic-xx","Totale"]
[null,"Disponibilità di cassa (inizio mese)",null,{"$f":"C54","v":0},0,0,0,0,0,0,0,0,0,0,0]
[]
[null,"INCASSI"," ","Gen-xx","Feb-xx","Mar-xx","Apr-xx","Mag-xx","Giu-xx","Lug-xx","Ago-xx","Set-xx","Ott-xx","Nov-xx","Dic-xx","Totale"]
[null,"Vendite in contanti",{"$nulls":13},{"$f":"SUM(D11:O11)","v":0}]
[null,"Resi e indennità di vendita",{"$nulls":13},0]
[null,"Raccolta contabilità clienti",{"$nulls":13},0]
[null,"Interessi, altre entrate",{"$nulls":13},0]
[null,"Ricavi da prestito",{"$nulls":13},0]
[null,"Contributi proprietario",{"$nulls":13},0]
[null,"INCASSI TOTALI",null,{"$f":"SUM(D11,D13:D16,(D12*-1))","v":0},{"$f":"SUM(E11,E13:E16,(E12*-1))","v":0},0,0,0,0,0,0,0,0,0,0,{"$f":"SUBTOTAL(109,Incassi[Totale])","v":0}]
[null,"Disponibilità di cassa totale",{"$f":"(C8+Incassi[[#Totals],[ ]])","v":0},{"$f":"(D8+Incassi[[#Totals],[Gen-xx]])","v":0},{"$f":"(E8+Incassi[[#Totals],[Feb-xx]])","v":0},{"$f":"(F8+Incassi[[#Totals],[Mar-xx]])","v":0},{"$f":"(G8+Incassi[[#Totals],[Apr-xx]])","v":0},{"$f":"(H8+Incassi[[#Totals],[Mag-xx]])","v":0},{"$f":"(I8+Incassi[[#Totals],[Giu-xx]])","v":0},{"$f":"(J8+Incassi[[#Totals],[Lug-xx]])","v":0},{"$f":"(K8+Incassi[[#Totals],[Ago-xx]])","v":0},{"$f":"(L8+Incassi[[#Totals],[Set-xx]])","v":0},{"$f":"(M8+Incassi[[#Totals],[Ott-xx]])","v":0},{"$f":"(N8+Incassi[[#Totals],[Nov-xx]])","v":0},{"$f":"(O8+Incassi[[#Totals],[Dic-xx]])","v":0}]
[]
[null,"USCITE DI CASSA"," ","Gen-xx","Feb-xx","Mar-xx","Apr-xx","Mag-xx","Giu-xx","Lug-xx","Ago-xx","Set-xx","Ott-xx","Nov-xx","Dic-xx","Totale"]
[null,"Pubblicità",{"$nulls":13},{"$f":"SUM(D21:O21)","v":0}]
[null,"Commissioni e spese",{"$nulls":13},0]
[null,"Collaboratori a contratto",{"$nulls":13},0]
[null,"Programmi di benefit per i dipendenti",{"$nulls":13},0]
[null,"Assicurazione (oltre a quella sanitaria)",{"$nulls":13},0]
[null,"Interessi passivi",{"$nulls":13},0]
[null,"Materiali e forniture (in COGS)",{"$nulls":13},0]
[null,"Pasti e intrattenimento",{"$nulls":13},0]
[null,"Interesse mutuo",{"$nulls":13},0]
[null,"Spese di ufficio",{"$nulls":13},0]
[null,"Altri interessi passivi",{"$nulls":13},0]
[null,"Piano pensionistico e condivisione di profitto",{"$nulls":13},0]
[null,"Acquisti per rivendita",{"$nulls":13},0]
[null,"Affitto o leasing",{"$nulls":13},0]
[null,"Affitto o leasing: veicoli, attrezzatura",{"$nulls":13},0]
[null,"Riparazioni e manutenzione",{"$nulls":13},0]
[null,"Forniture (non nel COGS)",{"$nulls":13},0]
[null,"Tasse e licenze",{"$nulls":13},0]
[null,"Viaggi",{"$nulls":13},0]
[null,"Utenze",{"$nulls":13},0]
[null,"Retribuzioni (meno crediti occ.)",{"$nulls":13},0]
[null,"Altre spese",{"$nulls":13},0]
[null,"Altre spese",{"$nulls":13},0]
[null,"Altre spese",{"$nulls":13},0]
[null,"Varie",{"$nulls":13},0]
[null,"SUBTOTALE",null,{"$f":"SUBTOTAL(109,Spese[Gen-xx])","v":0},{"$f":"SUBTOTAL(109,Spese[Feb-xx])","v":0},{"$f":"SUBTOTAL(109,Spese[Mar-xx])","v":0},{"$f":"SUBTOTAL(109,Spese[Apr-xx])","v":0},{"$f":"SUBTOTAL(109,Spese[Mag-xx])","v":0},{"$f":"SUBTOTAL(109,Spese[Giu-xx])","v":0},{"$f":"SUBTOTAL(109,Spese[Lug-xx])","v":0},{"$f":"SUBTOTAL(109,Spese[Ago-xx])","v":0},{"$f":"SUBTOTAL(109,Spese[Set-xx])","v":0},{"$f":"SUBTOTAL(109,Spese[Ott-xx])","v":0},{"$f":"SUBTOTAL(109,Spese[Nov-xx])","v":0},{"$f":"SUBTOTAL(109,Spese[Dic-xx])","v":0},{"$f":"SUBTOTAL(109,Spese[Totale])","v":0}]
[null,"USCITE DI CASSA"," ","Gen-xx","Feb-xx","Mar-xx","Apr-xx","Mag-xx","Giu-xx","Lug-xx","Ago-xx","Set-xx","Ott-xx","Nov-xx","Dic-xx","Totale"]
[null,"Pagamento capitale del prestito",{"$nulls":13},{"$f":"SUM(D48:O48)","v":0}]
[null,"Acquisti di capitale",{"$nulls":13},0]
[null,"Altri costi di avviamento",{"$nulls":13},0]
[null,"Per riserve e/o depositi a garanzia",{"$nulls":13},0]
[null,"Prelievo dei proprietari",{"$nulls":13},0]
[null,"TOTALE USCITE DI CASSA",null,{"$f":"Spese[[#Totals],[Gen-xx]]+SUBTOTAL(109,UsciteDiCassa[Gen-xx])","v":0},{"$f":"Spese[[#Totals],[Feb-xx]]+SUBTOTAL(109,UsciteDiCassa[Feb-xx])","v":0},{"$f":"Spese[[#Totals],[Mar-xx]]+SUBTOTAL(109,UsciteDiCassa[Mar-xx])","v":0},{"$f":"Spese[[#Totals],[Apr-xx]]+SUBTOTAL(109,UsciteDiCassa[Apr-xx])","v":0},{"$f":"Spese[[#Totals],[Mag-xx]]+SUBTOTAL(109,UsciteDiCassa[Mag-xx])","v":0},{"$f":"Spese[[#Totals],[Giu-xx]]+SUBTOTAL(109,UsciteDiCassa[Giu-xx])","v":0},{"$f":"Spese[[#Totals],[Lug-xx]]+SUBTOTAL(109,UsciteDiCassa[Lug-xx])","v":0},{"$f":"Spese[[#Totals],[Ago-xx]]+SUBTOTAL(109,UsciteDiCassa[Ago-xx])","v":0},{"$f":"Spese[[#Totals],[Set-xx]]+SUBTOTAL(109,UsciteDiCassa[Set-xx])","v":0},{"$f":"Spese[[#Totals],[Ott-xx]]+SUBTOTAL(109,UsciteDiCassa[Ott-xx])","v":0},{"$f":"Spese[[#Totals],[Nov-xx]]+SUBTOTAL(109,UsciteDiCassa[Nov-xx])","v":0},{"$f":"Spese[[#Totals],[Dic-xx]]+SUBTOTAL(109,UsciteDiCassa[Dic-xx])","v":0},0]
[null,"Disponibilità di cassa (fine del mese)",{"$f":"C18","v":0},{"$f":"D18-UsciteDiCassa[[#Totals],[Gen-xx]]","v":0},{"$f":"E18-UsciteDiCassa[[#Totals],[Feb-xx]]","v":0},{"$f":"F18-UsciteDiCassa[[#Totals],[Mar-xx]]","v":0},{"$f":"G18-UsciteDiCassa[[#Totals],[Apr-xx]]","v":0},{"$f":"H18-UsciteDiCassa[[#Totals],[Mag-xx]]","v":0},{"$f":"I18-UsciteDiCassa[[#Totals],[Giu-xx]]","v":0},{"$f":"J18-UsciteDiCassa[[#Totals],[Lug-xx]]","v":0},{"$f":"K18-UsciteDiCassa[[#Totals],[Ago-xx]]","v":0},{"$f":"L18-UsciteDiCassa[[#Totals],[Set-xx]]","v":0},{"$f":"M18-UsciteDiCassa[[#Totals],[Ott-xx]]","v":0},{"$f":"N18-UsciteDiCassa[[#Totals],[Nov-xx]]","v":0},{"$f":"O18-UsciteDiCassa[[#Totals],[Dic-xx]]","v":0}]
[]
[null,"ALTRI DATI OPERATIVI"," ","Gen-xx","Feb-xx","Mar-xx","Apr-xx","Mag-xx","Giu-xx","Lug-xx","Ago-xx","Set-xx","Ott-xx","Nov-xx","Dic-xx","Totale"]
[null,"Volume delle vendite (euro)",{"$nulls":13},{"$f":"SUM(OtherOperationalData[[#This Row],[Gen-xx]:[Dic-xx]])","v":0}]
[null,"Bilancio contabilità clienti:",{"$nulls":13},{"$f":"SUM(OtherOperationalData[[#This Row],[ ]:[Dic-xx]])","v":0}]
[null,"Bilancio insolvenze",{"$nulls":13},{"$f":"SUM(OtherOperationalData[[#This Row],[ ]:[Dic-xx]])","v":0}]
[null,"Scorte disponibili",{"$nulls":13},{"$f":"SUM(OtherOperationalData[[#This Row],[ ]:[Dic-xx]])","v":0}]
[null,"Saldo contabilità fornitori",{"$nulls":13},{"$f":"SUM(OtherOperationalData[[#This Row],[ ]:[Dic-xx]])","v":0}]
[null,"Ammortamento",{"$nulls":13},{"$f":"SUM(OtherOperationalData[[#This Row],[Gen-xx]:[Dic-xx]])","v":0}]

{"sheet":"Grafico Flusso di cassa","index":1,"n_rows":2,"n_cols":7,"rows_kept":2,"merged":[[1,1,1,5],[53,2,53,3]]}
[]
[null,"Avviso di saldo di cassa minimo:",{"$nulls":4},{"$f":"[0]!Cash_minimum","v":{"v":0,"d":"€ 0"}}]